[Event "*** Titled Tuesday Blitz"]
[Site "Chess.com"]
[Date "2020.02.04"]
[Round "4"]
[White "AvitalBor"]
[Black "korbul"]
[Result "0-1"]
[WhiteElo "2733"]
[BlackElo "2581"]
[TimeControl "180+2"]
[EndTime "9:52:06 PST"]
[Termination "korbul won by checkmate"]

1. Nf3 {[%clk 0:03:01.9]} 1... d5 {[%clk 0:02:59.6]} 2. g3 {[%clk 0:03:02.3]}
2... Nf6 {[%clk 0:02:59]} 3. Bg2 {[%clk 0:03:03.7]} 3... e6 {[%clk 0:02:59.1]}
4. O-O {[%clk 0:03:05.2]} 4... Be7 {[%clk 0:03:00.4]} 5. d4 {[%clk 0:03:04.3]}
5... O-O {[%clk 0:03:01]} 6. b3 {[%clk 0:03:04.4]} 6... Nbd7 {[%clk 0:03:00.4]}
7. Bb2 {[%clk 0:03:05.8]} 7... a5 {[%clk 0:03:01.3]} 8. c4 {[%clk 0:03:02.8]}
8... c6 {[%clk 0:03:01]} 9. Nc3 {[%clk 0:03:02.7]} 9... b6 {[%clk 0:03:01.1]}
10. Qc2 {[%clk 0:03:01.5]} 10... Ba6 {[%clk 0:03:01.3]} 11. Rfd1 {[%clk
0:02:54.5]} 11... b5 {[%clk 0:03:00.9]} 12. Nd2 {[%clk 0:02:49.1]} 12... bxc4
{[%clk 0:02:27.1]} 13. bxc4 {[%clk 0:02:51]} 13... dxc4 {[%clk 0:02:15.8]} 14.
Nce4 {[%clk 0:02:30.5]} 14... Rb8 {[%clk 0:02:10.1]} 15. a3 {[%clk 0:02:30.8]}
15... Nd5 {[%clk 0:02:02.9]} 16. Rab1 {[%clk 0:02:17.9]} 16... f5 {[%clk
0:01:50]} 17. Nc3 {[%clk 0:02:10.5]} 17... Bf6 {[%clk 0:01:33.2]} 18. e4 {[%clk
0:02:01.2]} 18... Bxd4 {[%clk 0:01:19.7]} 19. exd5 {[%clk 0:02:00.8]} 19... cxd5
{[%clk 0:01:19.5]} 20. Nxc4 {[%clk 0:01:45.7]} 20... Bf6 {[%clk 0:01:08.4]} 21.
Nxd5 {[%clk 0:01:14]} 21... exd5 {[%clk 0:01:05.5]} 22. Bxd5+ {[%clk 0:01:14.1]}
22... Kh8 {[%clk 0:01:06]} 23. Nd6 {[%clk 0:00:56.4]} 23... Bxb2 {[%clk
0:00:45.8]} 24. Rxb2 {[%clk 0:00:58.3]} 24... Rxb2 {[%clk 0:00:45.2]} 25. Qxb2
{[%clk 0:01:00.2]} 25... Qe7 {[%clk 0:00:43.1]} 26. Ba2 {[%clk 0:00:38.7]} 26...
h6 {[%clk 0:00:33.9]} 27. Qd2 {[%clk 0:00:25.9]} 27... Ne5 {[%clk 0:00:33.7]}
28. Qxa5 {[%clk 0:00:26.9]} 28... Nf3+ {[%clk 0:00:29.9]} 29. Kg2 {[%clk
0:00:27.8]} 29... Be2 {[%clk 0:00:29.8]} 30. Rd5 {[%clk 0:00:12.5]} 30... Ng5
{[%clk 0:00:30.4]} 31. Rxf5 {[%clk 0:00:05]} 31... Qxd6 {[%clk 0:00:17]} 32.
Rxf8+ {[%clk 0:00:06.1]} 32... Qxf8 {[%clk 0:00:17.5]} 33. f4 {[%clk 0:00:08]}
33... Nh7 {[%clk 0:00:09.5]} 34. Qd5 {[%clk 0:00:04.2]} 34... Bh5 {[%clk
0:00:09.6]} 35. h3 {[%clk 0:00:03.7]} 35... Nf6 {[%clk 0:00:10.4]} 36. Qd3
{[%clk 0:00:04.1]} 36... Qe8 {[%clk 0:00:10.5]} 37. g4 {[%clk 0:00:05.3]} 37...
Bf7 {[%clk 0:00:11.2]} 38. Bxf7 {[%clk 0:00:05.4]} 38... Qxf7 {[%clk 0:00:12.4]}
39. Kg3 {[%clk 0:00:07.2]} 39... Qd7 {[%clk 0:00:11.8]} 40. Qb3 {[%clk
0:00:07.3]} 40... Qd2 {[%clk 0:00:11.6]} 41. g5 {[%clk 0:00:07.4]} 41... Ne4+
{[%clk 0:00:12.1]} 42. Kg4 {[%clk 0:00:08.7]} 42... Nf2+ {[%clk 0:00:11.7]} 43.
Kf5 {[%clk 0:00:09.5]} 43... Qd7+ {[%clk 0:00:11.7]} 44. Kg6 {[%clk 0:00:10]}
44... Qe8+ {[%clk 0:00:12]} 45. Kf5 {[%clk 0:00:10.2]} 45... g6+ {[%clk
0:00:11.9]} 46. Kf6 {[%clk 0:00:10.5]} 46... Ne4# {[%clk 0:00:12.7]} 0-1

[Event "*** Titled Tuesday Blitz"]
[Site "Chess.com"]
[Date "2020.02.04"]
[Round "4"]
[White "GianmarcoVaR"]
[Black "Bigfish1995"]
[Result "0-1"]
[WhiteElo "2634"]
[BlackElo "3054"]
[TimeControl "180+2"]
[EndTime "9:52:15 PST"]
[Termination "Bigfish1995 won by resignation"]

1. d4 {[%clk 0:03:00.6]} 1... Nf6 {[%clk 0:03:00.5]} 2. Nf3 {[%clk 0:02:59.7]}
2... e6 {[%clk 0:03:01.2]} 3. c4 {[%clk 0:02:57.3]} 3... d5 {[%clk 0:03:02.5]}
4. g3 {[%clk 0:02:58]} 4... Bb4+ {[%clk 0:03:02.2]} 5. Bd2 {[%clk 0:02:57.8]}
5... Be7 {[%clk 0:03:02.9]} 6. Bg2 {[%clk 0:02:58.1]} 6... O-O {[%clk
0:03:04.5]} 7. O-O {[%clk 0:02:59.3]} 7... c6 {[%clk 0:03:04.2]} 8. Qc2 {[%clk
0:02:52.5]} 8... Nbd7 {[%clk 0:03:04.5]} 9. Bf4 {[%clk 0:02:52]} 9... Ne4 {[%clk
0:02:42.3]} 10. Nfd2 {[%clk 0:02:37.7]} 10... f5 {[%clk 0:02:31.2]} 11. Nxe4
{[%clk 0:02:37.5]} 11... fxe4 {[%clk 0:02:27.5]} 12. Nc3 {[%clk 0:02:15.8]}
12... Bf6 {[%clk 0:02:25]} 13. Rad1 {[%clk 0:02:15.4]} 13... Qe7 {[%clk
0:02:26.2]} 14. f3 {[%clk 0:01:59.8]} 14... exf3 {[%clk 0:02:26.8]} 15. exf3
{[%clk 0:02:00.8]} 15... c5 {[%clk 0:01:41.8]} 16. cxd5 {[%clk 0:01:53.4]} 16...
Bxd4+ {[%clk 0:01:41.5]} 17. Kh1 {[%clk 0:01:45]} 17... e5 {[%clk 0:01:38.5]}
18. Bc1 {[%clk 0:01:44.9]} 18... Nb6 {[%clk 0:01:38.7]} 19. f4 {[%clk 0:01:44]}
19... Bf5 {[%clk 0:01:27.8]} 20. Be4 {[%clk 0:01:16]} 20... Bxe4+ {[%clk
0:01:26.4]} 21. Qxe4 {[%clk 0:01:17.5]} 21... Rae8 {[%clk 0:01:26.1]} 22. f5
{[%clk 0:01:03]} 22... Qd7 {[%clk 0:01:21.7]} 23. Bg5 {[%clk 0:00:53.7]} 23...
Nc4 {[%clk 0:01:22.2]} 24. Qe2 {[%clk 0:00:20.4]} 24... Nd6 {[%clk 0:01:13.6]}
25. g4 {[%clk 0:00:21.2]} 25... e4 {[%clk 0:01:09.6]} 26. Be3 {[%clk 0:00:15.5]}
26... Bxe3 {[%clk 0:00:57.8]} 27. Qxe3 {[%clk 0:00:16.9]} 27... b6 {[%clk
0:00:59.2]} 28. b3 {[%clk 0:00:16.5]} 28... Re5 {[%clk 0:00:53.6]} 29. Rd2
{[%clk 0:00:14.4]} 29... Qe7 {[%clk 0:00:48]} 30. Rdf2 {[%clk 0:00:13.6]} 30...
Qh4 {[%clk 0:00:47.6]} 31. Rg1 {[%clk 0:00:06.5]} 31... h5 {[%clk 0:00:39.7]}
32. Rf4 {[%clk 0:00:06.8]} 32... Qg5 {[%clk 0:00:32.2]} 33. Qg3 {[%clk
0:00:07.5]} 33... e3 {[%clk 0:00:29.7]} 34. h4 {[%clk 0:00:09]} 34... Qe7 {[%clk
0:00:27]} 35. f6 {[%clk 0:00:04.1]} 35... Rxf6 {[%clk 0:00:26.4]} 36. Rxf6
{[%clk 0:00:05.2]} 36... Qxf6 {[%clk 0:00:26.8]} 37. g5 {[%clk 0:00:06.6]} 37...
Qf5 {[%clk 0:00:24.7]} 38. Ne2 {[%clk 0:00:05]} 38... Qe4+ {[%clk 0:00:20.5]}
39. Kh2 {[%clk 0:00:03.7]} 39... Rxd5 {[%clk 0:00:19.4]} 40. Rf1 {[%clk
0:00:02.6]} 40... Rd2 {[%clk 0:00:18.7]} 41. Kh3 {[%clk 0:00:03.9]} 41... Qe6+
{[%clk 0:00:18.8]} 42. Kg2 {[%clk 0:00:04.1]} 42... Rxe2+ {[%clk 0:00:20]} 0-1

[Event "*** Titled Tuesday Blitz"]
[Site "Chess.com"]
[Date "2020.02.04"]
[Round "4"]
[White "rasmussvane"]
[Black "AleksanderHnydiuk"]
[Result "1-0"]
[WhiteElo "2840"]
[BlackElo "2541"]
[TimeControl "180+2"]
[EndTime "9:52:24 PST"]
[Termination "rasmussvane won by resignation"]

1. Nf3 {[%clk 0:03:01.9]} 1... c5 {[%clk 0:02:59.9]} 2. e3 {[%clk 0:03:02]} 2...
Nf6 {[%clk 0:02:57.9]} 3. d4 {[%clk 0:03:02.5]} 3... g6 {[%clk 0:02:59.1]} 4.
dxc5 {[%clk 0:03:03.3]} 4... Qa5+ {[%clk 0:02:59.4]} 5. Nbd2 {[%clk 0:03:03.9]}
5... Qxc5 {[%clk 0:02:58.6]} 6. a3 {[%clk 0:03:05.1]} 6... Bg7 {[%clk
0:02:58.4]} 7. b4 {[%clk 0:03:06.4]} 7... Qc7 {[%clk 0:02:57.9]} 8. Bb2 {[%clk
0:03:07.7]} 8... O-O {[%clk 0:02:58.8]} 9. c4 {[%clk 0:03:08.8]} 9... b6 {[%clk
0:02:59]} 10. Be2 {[%clk 0:03:06]} 10... Bb7 {[%clk 0:03:00.1]} 11. O-O {[%clk
0:03:06.8]} 11... d6 {[%clk 0:03:00.7]} 12. Qb3 {[%clk 0:03:05.1]} 12... Nbd7
{[%clk 0:03:01.3]} 13. Rac1 {[%clk 0:03:04.5]} 13... Rac8 {[%clk 0:03:00.7]} 14.
Rfd1 {[%clk 0:03:05.5]} 14... Qb8 {[%clk 0:03:01.5]} 15. Nb1 {[%clk 0:03:04.7]}
15... Qa8 {[%clk 0:02:59.1]} 16. Nc3 {[%clk 0:03:02.6]} 16... Rfe8 {[%clk
0:02:43.5]} 17. h3 {[%clk 0:02:56.5]} 17... Ne4 {[%clk 0:02:36.2]} 18. Nd5
{[%clk 0:02:31.4]} 18... Bxb2 {[%clk 0:02:19.9]} 19. Qxb2 {[%clk 0:02:32]} 19...
Nef6 {[%clk 0:02:20.5]} 20. Nc3 {[%clk 0:02:13.7]} 20... Ne4 {[%clk 0:02:20.1]}
21. Nb5 {[%clk 0:01:53.7]} 21... a6 {[%clk 0:01:54.5]} 22. Nbd4 {[%clk
0:01:54.3]} 22... Rc7 {[%clk 0:01:50.2]} 23. Rc2 {[%clk 0:01:55.2]} 23... Rec8
{[%clk 0:01:50.2]} 24. Rdc1 {[%clk 0:01:56.1]} 24... Nef6 {[%clk 0:01:38.4]} 25.
Nb3 {[%clk 0:01:38.1]} 25... Be4 {[%clk 0:01:32]} 26. Rc3 {[%clk 0:01:37.3]}
26... Bb7 {[%clk 0:01:26.6]} 27. Nbd2 {[%clk 0:01:38.3]} 27... Ne4 {[%clk
0:01:25.4]} 28. Nxe4 {[%clk 0:01:33.6]} 28... Bxe4 {[%clk 0:01:27.3]} 29. Qd2
{[%clk 0:01:25.8]} 29... Nf6 {[%clk 0:01:13.5]} 30. Ne1 {[%clk 0:01:22.5]} 30...
Bb7 {[%clk 0:01:07.9]} 31. Qd4 {[%clk 0:01:22.5]} 31... Ne4 {[%clk 0:01:04]} 32.
R3c2 {[%clk 0:01:23.7]} 32... Qa7 {[%clk 0:00:43.3]} 33. Nd3 {[%clk 0:01:23.3]}
33... e5 {[%clk 0:00:32.8]} 34. Qb2 {[%clk 0:01:24.1]} 34... Ba8 {[%clk
0:00:27.8]} 35. Bf3 {[%clk 0:01:16.5]} 35... f5 {[%clk 0:00:24.1]} 36. Ne1
{[%clk 0:01:04.4]} 36... g5 {[%clk 0:00:16.2]} 37. Qb3 {[%clk 0:01:04.9]} 37...
Kh8 {[%clk 0:00:16.2]} 38. Qd3 {[%clk 0:01:05.7]} 38... Rd8 {[%clk 0:00:14.6]}
39. Qd1 {[%clk 0:01:05.3]} 39... Rg7 {[%clk 0:00:13.5]} 40. c5 {[%clk
0:00:59.6]} 40... bxc5 {[%clk 0:00:12]} 41. bxc5 {[%clk 0:01:00.9]} 41... d5
{[%clk 0:00:12.7]} 42. c6 {[%clk 0:01:01.6]} 42... Qc7 {[%clk 0:00:13.6]} 43.
Nd3 {[%clk 0:00:53.3]} 43... Rg6 {[%clk 0:00:13.8]} 44. Nb4 {[%clk 0:00:53.2]}
44... Rgd6 {[%clk 0:00:08.9]} 45. Nxa6 {[%clk 0:00:44.5]} 45... Qa5 {[%clk
0:00:09.9]} 46. Nb4 {[%clk 0:00:35]} 46... Qxa3 {[%clk 0:00:10.4]} 47. Nd3
{[%clk 0:00:36.3]} 47... Re8 {[%clk 0:00:04.4]} 48. c7 {[%clk 0:00:36.9]} 48...
Rc8 {[%clk 0:00:05]} 49. Nxe5 {[%clk 0:00:38.3]} 49... Rb6 {[%clk 0:00:03]} 50.
Qd4 {[%clk 0:00:37.3]} 50... Kg8 {[%clk 0:00:03]} 51. Qxb6 {[%clk 0:00:37.9]}
1-0

[Event "*** Titled Tuesday Blitz"]
[Site "Chess.com"]
[Date "2020.02.04"]
[Round "4"]
[White "Ginzburg_Yakov"]
[Black "Everyfishknows"]
[Result "1-0"]
[WhiteElo "2527"]
[BlackElo "2322"]
[TimeControl "180+2"]
[EndTime "9:52:24 PST"]
[Termination "Ginzburg_Yakov won by resignation"]

1. d4 {[%clk 0:03:01.8]} 1... Nf6 {[%clk 0:03:00.5]} 2. c4 {[%clk 0:03:02.7]}
2... e6 {[%clk 0:03:01.3]} 3. g3 {[%clk 0:03:03.5]} 3... Bb4+ {[%clk 0:03:02]}
4. Bd2 {[%clk 0:03:03]} 4... Qe7 {[%clk 0:03:02.7]} 5. Bg2 {[%clk 0:03:03.5]}
5... Nc6 {[%clk 0:03:02.9]} 6. Nf3 {[%clk 0:03:04.2]} 6... Bxd2+ {[%clk
0:03:03.3]} 7. Nbxd2 {[%clk 0:03:05.1]} 7... d6 {[%clk 0:03:04]} 8. O-O {[%clk
0:03:06.1]} 8... O-O {[%clk 0:03:04.6]} 9. Rc1 {[%clk 0:02:49.7]} 9... e5 {[%clk
0:03:03]} 10. d5 {[%clk 0:02:50.6]} 10... Nb8 {[%clk 0:03:01.2]} 11. e4 {[%clk
0:02:40.5]} 11... a5 {[%clk 0:03:01.8]} 12. Ne1 {[%clk 0:02:40.6]} 12... Na6
{[%clk 0:03:02.6]} 13. a3 {[%clk 0:02:37.5]} 13... Bg4 {[%clk 0:02:46.3]} 14. f3
{[%clk 0:02:38.3]} 14... Bd7 {[%clk 0:02:47.1]} 15. b3 {[%clk 0:02:24.9]} 15...
c6 {[%clk 0:02:19]} 16. Nd3 {[%clk 0:02:11.9]} 16... cxd5 {[%clk 0:01:48.1]} 17.
cxd5 {[%clk 0:02:12.8]} 17... Rfc8 {[%clk 0:01:42.9]} 18. Nc4 {[%clk 0:02:09.4]}
18... Bb5 {[%clk 0:00:40.4]} 19. Bh3 {[%clk 0:02:09]} 19... Nd7 {[%clk
0:00:35.1]} 20. Bxd7 {[%clk 0:01:53.7]} 20... Bxd7 {[%clk 0:00:14.1]} 21. Nb6
{[%clk 0:01:53.4]} 21... Rxc1 {[%clk 0:00:15.2]} 22. Qxc1 {[%clk 0:01:51.4]}
22... Rb8 {[%clk 0:00:10.7]} 23. Qc3 {[%clk 0:01:48.8]} 23... Bb5 {[%clk
0:00:10.2]} 24. Rc1 {[%clk 0:01:44.5]} 24... Bxd3 {[%clk 0:00:10.1]} 25. Qxd3
{[%clk 0:01:41.6]} 25... Nc5 {[%clk 0:00:08.9]} 26. Qe3 {[%clk 0:01:39.5]} 26...
Qd8 {[%clk 0:00:08.4]} 27. Nc4 {[%clk 0:01:34.9]} 27... b5 {[%clk 0:00:09]} 28.
Nxe5 {[%clk 0:01:30.5]} 28... Nxb3 {[%clk 0:00:05.6]} 29. Nc6 {[%clk 0:01:31.4]}
29... Qb6 {[%clk 0:00:05.7]} 30. Qxb6 {[%clk 0:01:22.5]} 30... Rxb6 {[%clk
0:00:06.6]} 31. Rc3 {[%clk 0:01:24.2]} 31... Nc5 {[%clk 0:00:07]} 32. Nxa5
{[%clk 0:01:20.6]} 32... Ra6 {[%clk 0:00:06.5]} 33. Nb7 {[%clk 0:01:16]} 33...
Nd7 {[%clk 0:00:02]} 34. Rc8+ {[%clk 0:01:11.9]} 34... Nf8 {[%clk 0:00:02.6]}
35. f4 {[%clk 0:01:03.6]} 35... g6 {[%clk 0:00:04]} 36. e5 {[%clk 0:01:04.1]}
36... dxe5 {[%clk 0:00:05.9]} 37. fxe5 {[%clk 0:01:05.1]} 37... Kg7 {[%clk
0:00:07.8]} 38. d6 {[%clk 0:01:02.7]} 38... Rxa3 {[%clk 0:00:08.4]} 39. Nc5
{[%clk 0:00:45.3]} 39... Re3 {[%clk 0:00:06.8]} 40. d7 {[%clk 0:00:42.5]} 40...
Nxd7 {[%clk 0:00:05.2]} 41. Nxd7 {[%clk 0:00:43.6]} 41... b4 {[%clk 0:00:06]}
42. Rb8 {[%clk 0:00:44.1]} 42... b3 {[%clk 0:00:06.7]} 43. Kf2 {[%clk
0:00:42.5]} 43... Rd3 {[%clk 0:00:07.8]} 44. Nf6 {[%clk 0:00:39.5]} 44... Rd2+
{[%clk 0:00:08]} 45. Kf3 {[%clk 0:00:38.8]} 45... Rxh2 {[%clk 0:00:09.1]} 46.
Rxb3 {[%clk 0:00:39.3]} 46... Rc2 {[%clk 0:00:07]} 47. g4 {[%clk 0:00:35]} 47...
h6 {[%clk 0:00:03.5]} 48. Rb8 {[%clk 0:00:34.6]} 48... h5 {[%clk 0:00:03.1]} 49.
g5 {[%clk 0:00:34]} 49... Rc3+ {[%clk 0:00:04.2]} 50. Ke2 {[%clk 0:00:34.6]} 1-0

[Event "*** Titled Tuesday Blitz"]
[Site "Chess.com"]
[Date "2020.02.04"]
[Round "4"]
[White "MFBerna"]
[Black "earling8018"]
[Result "1-0"]
[WhiteElo "2336"]
[BlackElo "2053"]
[TimeControl "180+2"]
[EndTime "9:52:28 PST"]
[Termination "MFBerna won by resignation"]

1. d4 {[%clk 0:03:01.9]} 1... d5 {[%clk 0:02:55.4]} 2. c4 {[%clk 0:02:55.5]}
2... e6 {[%clk 0:02:53.7]} 3. Nf3 {[%clk 0:02:54.4]} 3... Nf6 {[%clk 0:02:53.4]}
4. Nc3 {[%clk 0:02:54.4]} 4... Be7 {[%clk 0:02:53.5]} 5. cxd5 {[%clk 0:02:53.5]}
5... exd5 {[%clk 0:02:53.8]} 6. Bf4 {[%clk 0:02:54.4]} 6... O-O {[%clk
0:02:52.5]} 7. e3 {[%clk 0:02:54.2]} 7... b6 {[%clk 0:02:52.3]} 8. Bd3 {[%clk
0:02:54.1]} 8... c5 {[%clk 0:02:52.6]} 9. O-O {[%clk 0:02:49.8]} 9... Bb7 {[%clk
0:02:52.9]} 10. Rc1 {[%clk 0:02:35.7]} 10... Nc6 {[%clk 0:02:32.1]} 11. dxc5
{[%clk 0:02:32.5]} 11... bxc5 {[%clk 0:02:33]} 12. Bb1 {[%clk 0:02:30.2]} 12...
Rc8 {[%clk 0:01:56.2]} 13. Na4 {[%clk 0:01:55.7]} 13... Qa5 {[%clk 0:01:55.7]}
14. a3 {[%clk 0:01:37.3]} 14... Rfd8 {[%clk 0:01:50.5]} 15. Nxc5 {[%clk
0:01:01.4]} 15... Bxc5 {[%clk 0:01:41.5]} 16. b4 {[%clk 0:01:02]} 16... Bxb4
{[%clk 0:01:32.7]} 17. axb4 {[%clk 0:01:03.9]} 17... Qxb4 {[%clk 0:01:20.9]} 18.
Bg5 {[%clk 0:00:59.2]} 18... Qd6 {[%clk 0:01:12.8]} 19. Qd3 {[%clk 0:00:40.6]}
19... h6 {[%clk 0:01:02.8]} 20. Bh4 {[%clk 0:00:29.7]} 20... Ne5 {[%clk
0:00:59.2]} 21. Qf5 {[%clk 0:00:25.9]} 21... Nxf3+ {[%clk 0:00:51.7]} 22. gxf3
{[%clk 0:00:27.8]} 22... Qe6 {[%clk 0:00:39.5]} 23. Rxc8 {[%clk 0:00:22.1]}
23... Rxc8 {[%clk 0:00:36.5]} 24. Qf4 {[%clk 0:00:18.9]} 24... Nh5 {[%clk
0:00:22.1]} 25. Qd4 {[%clk 0:00:13.2]} 25... Qh3 {[%clk 0:00:12.5]} 26. Bg3
{[%clk 0:00:09.9]} 26... Nxg3 {[%clk 0:00:09.9]} 27. hxg3 {[%clk 0:00:08.6]}
27... a6 {[%clk 0:00:06.5]} 28. Qd3 {[%clk 0:00:09.3]} 28... Qe6 {[%clk
0:00:05.3]} 29. Qh7+ {[%clk 0:00:10.1]} 29... Kf8 {[%clk 0:00:05.6]} 30. Qh8+
{[%clk 0:00:11.3]} 30... Ke7 {[%clk 0:00:06.4]} 31. Qxg7 {[%clk 0:00:13.2]}
31... Qf6 {[%clk 0:00:05.5]} 32. Qg4 {[%clk 0:00:10.9]} 32... Rd8 {[%clk
0:00:03.7]} 33. Qb4+ {[%clk 0:00:11.6]} 33... Ke8 {[%clk 0:00:03.7]} 34. Qxb7
{[%clk 0:00:12.5]} 34... Rd7 {[%clk 0:00:02.1]} 35. Qc8+ {[%clk 0:00:12.8]}
35... Rd8 {[%clk 0:00:02.9]} 36. Qc7 {[%clk 0:00:13.2]} 36... Qxf3 {[%clk
0:00:02.9]} 37. Qf4 {[%clk 0:00:08.2]} 37... Qe2 {[%clk 0:00:03.2]} 38. Qe5+
{[%clk 0:00:07.2]} 38... Kf8 {[%clk 0:00:02.1]} 39. Qh8+ {[%clk 0:00:08.2]}
39... Ke7 {[%clk 0:00:03]} 40. Qxh6 {[%clk 0:00:07.7]} 40... Qf3 {[%clk
0:00:03.9]} 41. Qg5+ {[%clk 0:00:06]} 41... Ke8 {[%clk 0:00:04.4]} 42. Bc2
{[%clk 0:00:04.2]} 42... a5 {[%clk 0:00:04.5]} 43. Ba4+ {[%clk 0:00:05.2]} 43...
Kf8 {[%clk 0:00:03.9]} 44. Qxd8+ {[%clk 0:00:06]} 44... Kg7 {[%clk 0:00:05.4]}
45. Qg5+ {[%clk 0:00:07.9]} 45... Kf8 {[%clk 0:00:05.4]} 46. Qf4 {[%clk
0:00:08]} 46... Qe2 {[%clk 0:00:05.3]} 47. Qd6+ {[%clk 0:00:07.1]} 1-0

[Event "*** Titled Tuesday Blitz"]
[Site "Chess.com"]
[Date "2020.02.04"]
[Round "4"]
[White "GadimbayliA"]
[Black "Zq1"]
[Result "1-0"]
[WhiteElo "2934"]
[BlackElo "2542"]
[TimeControl "180+2"]
[EndTime "9:52:29 PST"]
[Termination "GadimbayliA won by resignation"]

1. e4 {[%clk 0:03:01.9]} 1... c5 {[%clk 0:03:00.8]} 2. Nf3 {[%clk 0:03:02.5]}
2... d6 {[%clk 0:03:01.6]} 3. Bb5+ {[%clk 0:02:58.9]} 3... Bd7 {[%clk 0:03:02]}
4. c4 {[%clk 0:02:57.8]} 4... Nc6 {[%clk 0:03:02.2]} 5. O-O {[%clk 0:02:58.6]}
5... g6 {[%clk 0:03:01.9]} 6. d4 {[%clk 0:02:59.5]} 6... cxd4 {[%clk 0:03:02.4]}
7. Nxd4 {[%clk 0:03:01.4]} 7... Bg7 {[%clk 0:03:03.1]} 8. Be3 {[%clk 0:03:02.7]}
8... Nf6 {[%clk 0:03:03]} 9. f3 {[%clk 0:02:59.9]} 9... O-O {[%clk 0:03:02.2]}
10. Nc3 {[%clk 0:03:00.5]} 10... Rc8 {[%clk 0:02:58.6]} 11. Rc1 {[%clk
0:02:50.1]} 11... Nxd4 {[%clk 0:02:52.8]} 12. Bxd4 {[%clk 0:02:38.5]} 12... Bxb5
{[%clk 0:02:41.8]} 13. Nxb5 {[%clk 0:02:19.6]} 13... a6 {[%clk 0:02:41]} 14. Na3
{[%clk 0:02:20.7]} 14... Qa5 {[%clk 0:02:32.3]} 15. Qb3 {[%clk 0:01:59.4]} 15...
Qc7 {[%clk 0:01:56.2]} 16. Rfd1 {[%clk 0:01:56.5]} 16... Rfe8 {[%clk 0:01:52.1]}
17. Kh1 {[%clk 0:01:56.2]} 17... Qc6 {[%clk 0:01:43.4]} 18. Rc3 {[%clk 0:01:48]}
18... Nd7 {[%clk 0:01:40.1]} 19. Bxg7 {[%clk 0:01:47.2]} 19... Kxg7 {[%clk
0:01:41.2]} 20. Nc2 {[%clk 0:01:44.6]} 20... Qb6 {[%clk 0:01:35.9]} 21. Qxb6
{[%clk 0:01:38.1]} 21... Nxb6 {[%clk 0:01:36.3]} 22. Ne3 {[%clk 0:01:39.7]}
22... Na4 {[%clk 0:01:31.6]} 23. Rb3 {[%clk 0:01:34.5]} 23... Nc5 {[%clk
0:01:30.3]} 24. Ra3 {[%clk 0:01:14.9]} 24... b5 {[%clk 0:01:27]} 25. b3 {[%clk
0:01:03.8]} 25... Rc6 {[%clk 0:01:17.7]} 26. h3 {[%clk 0:00:54.8]} 26... Rb8
{[%clk 0:01:16.2]} 27. cxb5 {[%clk 0:00:45.2]} 27... axb5 {[%clk 0:01:14.9]} 28.
Nd5 {[%clk 0:00:46.8]} 28... Rb7 {[%clk 0:00:59]} 29. Rc1 {[%clk 0:00:42.1]}
29... e6 {[%clk 0:00:44]} 30. Nb4 {[%clk 0:00:35.4]} 30... Rcc7 {[%clk
0:00:43.1]} 31. Ra8 {[%clk 0:00:29.3]} 31... Ra7 {[%clk 0:00:31.2]} 32. Rxa7
{[%clk 0:00:30.1]} 32... Rxa7 {[%clk 0:00:31.5]} 33. e5 {[%clk 0:00:31.7]} 33...
Na6 {[%clk 0:00:23.2]} 34. Nc6 {[%clk 0:00:29.3]} 34... Rd7 {[%clk 0:00:22.7]}
35. Rd1 {[%clk 0:00:23.8]} 35... d5 {[%clk 0:00:23.3]} 36. Nd4 {[%clk 0:00:25]}
36... b4 {[%clk 0:00:19.5]} 37. Rc1 {[%clk 0:00:24.4]} 37... Rc7 {[%clk
0:00:20.3]} 38. Rxc7 {[%clk 0:00:11.3]} 38... Nxc7 {[%clk 0:00:21.3]} 39. Nc2
{[%clk 0:00:13]} 39... Na6 {[%clk 0:00:21.6]} 40. Kg1 {[%clk 0:00:14.5]} 40...
g5 {[%clk 0:00:19.5]} 41. Kf2 {[%clk 0:00:15.1]} 41... f6 {[%clk 0:00:19.9]} 42.
exf6+ {[%clk 0:00:09.1]} 42... Kxf6 {[%clk 0:00:21.1]} 43. Ke3 {[%clk
0:00:09.6]} 43... e5 {[%clk 0:00:22.2]} 44. g3 {[%clk 0:00:09.8]} 44... h5
{[%clk 0:00:22.3]} 45. f4 {[%clk 0:00:06.7]} 45... gxf4+ {[%clk 0:00:23.1]} 46.
gxf4 {[%clk 0:00:07.9]} 46... Kf5 {[%clk 0:00:24.5]} 47. fxe5 {[%clk 0:00:09.1]}
47... Kxe5 {[%clk 0:00:25.6]} 48. Nd4 {[%clk 0:00:10.3]} 48... Kd6 {[%clk
0:00:22.4]} 49. Kf4 {[%clk 0:00:11.4]} 49... Nc5 {[%clk 0:00:22.8]} 50. Nc2
{[%clk 0:00:09.2]} 50... Nd3+ {[%clk 0:00:23.1]} 51. Ke3 {[%clk 0:00:10.4]}
51... Nc1 {[%clk 0:00:21.5]} 52. Nxb4 {[%clk 0:00:11.4]} 52... Kc5 {[%clk
0:00:22.7]} 53. Nd3+ {[%clk 0:00:12.7]} 1-0